lending/lending_fUSD_20260211
["ID","MTS","AMOUNT","RATE_DAILY","PERIOD"]
[405099966,1770810642254,-1273.0,0.00017663,2]
[405099967,1770810642267,-6590.0,0.00017663,2]
[405099968,1770810642279,-5966.0,0.00017663,2]
[405099969,1770810642296,-2449.0,0.00017663,2]
[405099970,1770810642309,-500.0,0.000177,6]
[405099971,1770810642323,-2012.0,0.000177,2]
[405099972,1770810642337,-999.99,0.00017728,2]
[405099973,1770810642350,-280.86,0.00017728,2]
[405099974,1770810642364,-311.22,0.00017728,2]
[405099975,1770810642376,-1184.01,0.00017728,2]
[405099976,1770810642388,-1203.16,0.00017728,2]
[405099977,1770810642401,-9999.99,0.00017728,2]
[405099978,1770810642413,-4573.73,0.00017728,2]
[405099979,1770810642425,-9999.99,0.00017728,2]
[405099980,1770810642438,-150.99,0.00017728,2]
[405099981,1770810642450,-500.0,0.000178,6]
[405099982,1770810642463,-200.0,0.00017805,2]
[405099983,1770810642475,-11269.0,0.00017807,2]
[405099984,1770810642488,-5000.0,0.00017808,2]
[405099985,1770810642499,-500.0,0.00017808,2]
[405099986,1770810642512,-500.0,0.00017808,2]
[405099987,1770810642525,-500.0,0.00017808,2]
[405099988,1770810642537,-500.0,0.00017808,2]
[405099989,1770810642551,-500.0,0.00017808,2]
[405099990,1770810642563,-500.0,0.00017808,2]
[405099991,1770810642575,-500.0,0.00017808,2]
[405099992,1770810642588,-500.0,0.00017808,2]
[405099993,1770810642601,-280.78519666,0.00017808,2]
[405099994,1770810642614,-500.0,0.00017808,2]
[405099995,1770810642627,-500.0,0.00017808,2]
[405099996,1770810642640,-500.0,0.00017808,2]
[405099997,1770810642653,-500.0,0.00017808,2]
[405099998,1770810642665,-500.0,0.00017808,2]
[405099999,1770810642678,-350.0,0.00017808,2]
[405100000,1770810642690,-1000.0,0.00017808,2]
[405100001,1770810642702,-8072.90460096,0.00017812,2]
[405100002,1770810642714,-3159.6139117,0.00017823,2]
[405100003,1770810642729,-153.4566854,0.00017823,2]
[405100004,1770810642741,-200.0,0.00017823,2]
[405100005,1770810642753,-200.0,0.00017823,2]
[405100006,1770810642766,-500.0,0.00017873,2]
[405100007,1770810642778,-500.0,0.00017873,2]
[405100008,1770810642790,-500.0,0.00017873,2]
[405100009,1770810642803,-157.56683688,0.00017873,2]
[405100010,1770810642814,-500.0,0.00017873,2]
[405100011,1770810642826,-500.0,0.00017873,2]
[405100012,1770810642838,-178.51986,0.00017898,2]
[405100013,1770810642850,-10159.1076,0.000179,2]
[405100014,1770810642862,-10000.0,0.000179,2]
[405100015,1770810642874,-25000.0,0.000179,3]
[405100016,1770810642886,-2157.85942348,0.000179,3]
[405100017,1770810642898,-500.0,0.000179,6]
[405100018,1770810642910,-8424.79478568,0.000179,2]
[405100019,1770810642923,-1453.52097657,0.000179,2]
[405100020,1770810642938,-258.94253393,0.000179,2]
[405100021,1770810642952,-8439.59953174,0.000179,2]
[405100022,1770810642962,-3205.05067904,0.00017946,2]
[405100023,1770810642971,-250.0,0.00017949,2]
[405100024,1770810642982,-500.0,0.00017973,2]
[405100025,1770810642991,-500.0,0.00017973,2]
[405100026,1770810643000,-500.0,0.00017973,2]
[405100027,1770810643011,-220.09089425,0.00017973,2]
[405100028,1770810643021,-508.75425762,0.00017973,2]
[405100029,1770810643030,-956764.06806566,0.00018,2]
[405100035,1770810643992,-1697.18831677,0.00018,2]
[405100036,1770810644836,-987.61314542,0.00018,2]
[405100039,1770810646241,-987.61314542,0.00018,2]
[405100066,1770811308081,4061.604,0.0003,120]
[405100180,1770811827629,1420.74,0.0002,30]
[405100184,1770811837505,-932.44184216,0.00012489,2]
[405100191,1770811837560,-1650.64815784,0.00012489,2]
[405100192,1770811837570,-1852.86512372,0.00012729,2]
[405100193,1770811837581,-1915.93420237,0.00013608,2]
[405100194,1770811837591,-1979.00328103,0.00014487,2]
[405100195,1770811837603,-150.0,0.00014489,2]
[405100196,1770811837613,-5616.12856351,0.0001449,2]
[405100197,1770811837669,-309.46,0.0001449,2]
[405100198,1770811837725,-610.14,0.0001449,2]
[405100199,1770811837738,-25107.27143649,0.0001449,2]
[405100200,1770811837748,-252.00698751,0.0001449,2]
[405100201,1770811837759,-1314.31253269,0.000145,2]
[405100202,1770811837769,-72403.8968,0.00014778,2]
[405100203,1770811837782,-1682.1727,0.00014778,2]
[405100204,1770811837791,-250.0,0.00015,2]
[405100205,1770811837801,-198.12,0.00015245,2]
[405100206,1770811837810,-210.35,0.00015267,2]
[405100207,1770811837820,-2042.07235969,0.00015366,2]
[405100208,1770811837830,-7582.31530713,0.00015472,2]
[405100209,1770811837839,-297.78,0.00015572,2]
[405100210,1770811837849,-255.0,0.00015619,2]
[405100211,1770811837859,-2093.58,0.00015637,2]
[405100212,1770811837868,-500.0,0.00015662,2]
[405100213,1770811837878,-160.45,0.00015708,2]
[405100215,1770811837887,-7582.31530711,0.00015742,2]
[405100216,1770811837897,-500.0,0.00015913,2]
[405100217,1770811837907,-500.0,0.00015913,2]
[405100218,1770811837916,-500.0,0.00015913,2]
[405100219,1770811837926,-500.0,0.00015913,2]
[405100220,1770811837935,-500.0,0.00015913,2]
[405100221,1770811837945,-235.97533992,0.00015913,2]
[405100222,1770811837955,-500.0,0.00015913,2]
[405100223,1770811837965,-3091.62,0.00015914,2]
[405100224,1770811837975,-233498.72,0.00015914,2]
[405100225,1770811837985,-257.447609,0.00016,2]
[405100226,1770811837994,-7582.31530711,0.00016012,2]
[405100227,1770811838004,-2500.0,0.00016016,2]
[405100228,1770811838014,-3016.09,0.00016095,2]
[405100229,1770811838024,-9999.99,0.00016116,2]
[405100230,1770811838035,-280.86,0.00016116,2]
[405100231,1770811838046,-20374.4,0.00016116,2]
[405100232,1770811838056,-1184.01,0.00016116,2]
[405100233,1770811838067,-4573.73,0.00016116,2]
[405100234,1770811838077,-999.99,0.00016116,2]
[405100235,1770811838087,-1203.16,0.00016116,2]
[405100236,1770811838097,-311.22,0.00016116,2]
[405100237,1770811838106,-150.99,0.00016116,2]
[405100238,1770811838116,-9999.99,0.00016116,2]
[405100239,1770811838126,-166.66,0.00016156,2]
[405100240,1770811838136,-2105.14143834,0.00016245,2]
[405100241,1770811838148,-7582.31530711,0.00016281,2]
[405100242,1770811838158,-841.0,0.000164,2]
[405100243,1770811838169,-2093.58,0.00016419,2]
[405100244,1770811838180,-250.0,0.00016502,2]
[405100245,1770811838190,-7582.31530711,0.00016551,2]
[405100246,1770811838200,-206.85979037,0.00016648,2]
[405100247,1770811838210,-150.0,0.00016648,2]
[405100248,1770811838220,-245.85501438,0.00016648,2]
[405100249,1770811838230,-166.66,0.0001669,2]
[405100250,1770811838240,-150.0,0.00016703,2]
[405100251,1770811838251,-150.0,0.00016758,2]
[405100252,1770811838262,-150.0,0.00016812,2]
[405100253,1770811838273,-7582.31530711,0.00016821,2]
[405100254,1770811838284,-160.45,0.0001683,2]
[405100255,1770811838295,-161.0,0.00016836,2]
[405100256,1770811838306,-152.59959134,0.00016843,2]
[405100257,1770811838317,-189.34604561,0.00016843,2]
[405100258,1770811838327,-150.82598324,0.00016867,2]
[405100259,1770811838337,-3919.41,0.00016953,2]
[405100260,1770811838347,-277.35679052,0.00017012,2]
[405100261,1770811838357,-250.0,0.00017012,2]
[405100262,1770811838367,-250.0,0.00017012,2]
[405100263,1770811838377,-250.0,0.00017012,2]
[405100264,1770811838388,-250.0,0.00017012,2]
[405100265,1770811838398,-250.0,0.00017012,2]
[405100266,1770811838409,-250.0,0.00017012,2]
[405100267,1770811838419,-260.23349697,0.00017012,2]
[405100268,1770811838429,-500.0,0.00017012,2]
[405100269,1770811838439,-250.0,0.00017012,2]
[405100270,1770811838450,-500.0,0.00017012,2]
[405100271,1770811838461,-250.0,0.00017012,2]
[405100272,1770811838472,-250.0,0.00017012,2]
[405100273,1770811838482,-500.0,0.00017012,2]
[405100274,1770811838493,-262.73598838,0.00017012,2]
[405100275,1770811838503,-500.0,0.00017012,2]
[405100276,1770811838514,-500.0,0.00017012,2]
[405100277,1770811838525,-500.0,0.00017012,2]
[405100278,1770811838539,-448.42107791,0.00017012,2]
[405100279,1770811838550,-7582.31530711,0.00017091,2]
[405100280,1770811838560,-2168.210517,0.00017124,2]
[405100281,1770811838571,-500.0,0.00017144,2]
[405100282,1770811838582,-518.70244682,0.00017144,2]
[405100283,1770811838593,-520.25784948,0.00017144,2]
[405100284,1770811838602,-500.0,0.00017144,2]
[405100285,1770811838613,-500.0,0.00017144,2]
[405100286,1770811838626,-350.0,0.00017165,2]
[405100287,1770811838637,-2093.58,0.00017201,2]
[405100288,1770811838647,-166.66,0.00017223,2]
[405100289,1770811838657,-222.0,0.00017256,2]
[405100290,1770811838667,-1000.0,0.0001726,2]
[405100291,1770811838678,-7582.31530711,0.0001736,2]
[405100292,1770811838688,-500.0,0.0001739,2]
[405100293,1770811838700,-259.0,0.00017397,2]
[405100294,1770811838711,-500.0,0.000174,6]
[405100295,1770811838720,-489.703,0.00017496,2]
[405100296,1770811838731,-1100.0,0.000175,6]
[405100297,1770811838741,-350.0,0.0001752,2]
[405100298,1770811838750,-1000.0,0.00017534,2]
[405100299,1770811838760,-335.0,0.00017552,2]
[405100300,1770811838769,-287.61899177,0.0001756,2]
[405100301,1770811838781,-368.79128323,0.000176,2]
[405100302,1770811838791,-1600.0,0.000176,6]
[405100303,1770811838800,-7582.31530711,0.0001763,2]
[405100304,1770811838810,-155.34959577,0.00017639,2]
[405100305,1770811838820,-3510.8141643,0.0001764,2]
[405100306,1770811838830,-500.0,0.0001765,2]
[405100307,1770811838840,-162.0,0.0001768,2]
[405100308,1770811838850,-150.0,0.00017681,2]
[405100309,1770811838860,-150.0,0.00017681,2]
[405100310,1770811838870,-150.0,0.00017681,2]
[405100311,1770811838880,-150.0,0.00017681,2]
[405100312,1770811838890,-150.0,0.00017681,2]
[405100313,1770811838900,-150.0,0.00017681,2]
[405100314,1770811838910,-1337.0,0.00017681,2]
[405100315,1770811838921,-618.018,0.00017681,2]
[405100316,1770811838931,-1336.494,0.00017681,2]
[405100317,1770811838941,-2826.82476668,0.00017681,2]
[405100340,1770811839792,-337.055,0.00017681,2]
[405100341,1770811839844,-323.12023332,0.00017681,2]
[405100342,1770811839854,-150.887,0.00017681,2]
[405100343,1770811839864,-1273.0,0.00017681,2]
[405100344,1770811839873,-1212.019,0.00017681,2]
[405100345,1770811839882,-918.0,0.00017681,2]
[405100346,1770811839892,-5966.0,0.00017681,2]
[405100347,1770811839901,-2449.0,0.00017681,2]
[405100348,1770811839911,-6590.0,0.00017681,2]
[405100349,1770811839921,-2200.0,0.000177,6]
[405100350,1770811839932,-166.66,0.00017756,2]
[405100351,1770811839942,-2012.0,0.000178,2]
[405100352,1770811839951,-7622.60180949,0.000178,2]
[405100353,1770811839961,-2700.0,0.000178,6]
[405100354,1770811839971,-200.0,0.00017805,2]
[405100355,1770811839980,-5000.0,0.00017808,2]
[405100356,1770811839988,-1000.0,0.00017808,2]
[405100358,1770811839997,-7622.6018094,0.00017811,2]
[405100359,1770811840007,-7622.6018094,0.00017822,2]
[405100360,1770811840017,-7622.6018094,0.00017833,2]
[405100361,1770811840026,-7622.6018094,0.00017844,2]
[405100362,1770811840036,-7622.6018094,0.00017856,2]
[405100363,1770811840045,-7622.6018094,0.00017867,2]
[405100364,1770811840055,-500.0,0.00017873,2]
[405100365,1770811840065,-500.0,0.00017873,2]
[405100366,1770811840074,-500.0,0.00017873,2]
[405100367,1770811840083,-500.0,0.00017873,2]
[405100368,1770811840092,-157.56683688,0.00017873,2]
[405100369,1770811840102,-500.0,0.00017873,2]
[405100370,1770811840111,-7622.6018094,0.00017878,2]
[405100371,1770811840121,-7622.6018094,0.00017889,2]
[405100372,1770811840130,-578.39927052,0.00017899,2]
[405100373,1770811840140,-4604.90418883,0.000179,3]
[405100374,1770811840149,-1000.0,0.000179,2]
[405100375,1770811840159,-10159.1076,0.000179,2]
[405100376,1770811840168,-33323.5159,0.000179,2]
[405100377,1770811840178,-10000.0,0.000179,2]
[405100378,1770811840187,-500.0,0.000179,6]
[405100379,1770811840196,-7622.6018094,0.000179,2]
[405100380,1770811840206,-7582.31530711,0.000179,2]
[405100381,1770811840215,-8438.34681546,0.000179,2]
[405100382,1770811840225,-202.97555083,0.000179,2]
[405100383,1770811840234,-545.02739054,0.000179,2]
[405100384,1770811840244,-3782.65947992,0.000179,2]
[405100385,1770811840255,-191.13450223,0.00017942,2]
[405100386,1770811840264,-160.45,0.00017952,2]
[405100387,1770811840274,-500.0,0.00017972,2]
[405100388,1770811840284,-500.0,0.00017972,2]
[405100389,1770811840293,-500.0,0.00017973,2]
[405100390,1770811840303,-220.09089425,0.00017973,2]
[405100391,1770811840312,-500.0,0.00017973,2]
[405100392,1770811840321,-500.0,0.00017973,2]
[405100393,1770811840331,-508.75425762,0.00017973,2]
[405100394,1770811840340,-2093.58,0.00017982,2]
[405100395,1770811840350,-500.0,0.00017986,2]
[405100396,1770811840359,-500.0,0.00017986,2]
[405100397,1770811840369,-180.59802983,0.00017986,2]
[405100398,1770811840379,-500.0,0.00017986,2]
[405100399,1770811840389,-210.15485152,0.00017986,2]
[405100400,1770811840398,-500.0,0.00017986,2]
[405100401,1770811840408,-500.0,0.00017986,2]
[405100402,1770811840418,-500.0,0.00017986,2]
[405100403,1770811840427,-500.0,0.00017986,2]
[405100404,1770811840437,-500.0,0.00017986,2]
[405100405,1770811840447,-500.0,0.00017986,2]
[405100406,1770811840456,-500.0,0.00017986,2]
[405100407,1770811840466,-500.0,0.00017986,2]
[405100408,1770811840475,-500.0,0.00017986,2]
[405100409,1770811840485,-500.0,0.00017986,2]
[405100410,1770811840495,-500.0,0.00017986,2]
[405100411,1770811840504,-634.235559,0.00017986,2]
[405100412,1770811840513,-12829.3820096,0.00017987,2]
[405100413,1770811840523,-469596.8961269,0.00017987,2]
[405100414,1770811840532,-3159.6139117,0.00017987,2]
[405100415,1770811840546,-157.3079138,0.00017987,2]
[405100416,1770811840558,-813.0,0.00017987,2]
[405100417,1770811840575,-155.0,0.00017999,2]
[405100418,1770811840585,-500.0,0.00017999,2]
[405100419,1770811840595,-500.0,0.00017999,2]
[405100420,1770811840605,-500.0,0.00017999,2]
[405100421,1770811840615,-500.0,0.00017999,2]
[405100422,1770811840629,-500.0,0.00017999,2]
[405100423,1770811840638,-500.0,0.00017999,2]
[405100424,1770811840648,-500.0,0.00017999,2]
[405100425,1770811840657,-500.0,0.00017999,2]
[405100426,1770811840668,-11270.0,0.00018,2]
[405100427,1770811840677,-875792.15358793,0.00018,2]
[405100428,1770811840690,-1043.58632032,0.00018,2]
[405100447,1770811844650,-207.15402716,0.00017887,2]
[405100448,1770811844660,-651.72547755,0.00018,2]
[405100449,1770811844704,-966.22512509,0.00018,2]
[405100450,1770811844762,-8310.28958005,0.00018,2]
[405100452,1770811845453,-2000.0,0.00018,2]
[405100453,1770811845669,-16548.65175847,0.00018,2]
[405100454,1770811845828,-1369.62442085,0.00018,2]
[405100461,1770812647428,179.92,0.00035616,120]
[405100500,1770813031545,-2343.97,0.00015914,2]
[405100502,1770813031555,-247.71,0.00015914,2]
[405100503,1770813031566,-1000.0,0.00016016,2]
[405100504,1770813031576,-174.09,0.000161,2]
[405100505,1770813031587,-2119.67740641,0.00016153,2]
[405100506,1770813031597,-1004.43383659,0.000162,5]
[405100507,1770813031608,-1189.407222,0.000162,5]
[405100508,1770813031620,-946.4836003,0.000162,5]
[405100509,1770813031632,-844.93814434,0.000162,5]
[405100510,1770813031648,-278.84598499,0.000162,5]
[405100511,1770813031664,-735.89640059,0.000162,5]
[405100512,1770813031674,-300.0,0.000166,6]
[405100513,1770813031684,-200.0,0.00016625,2]
[405100514,1770813031694,-700.0,0.000167,6]
[405100515,1770813031703,-39.4502606,0.00016747,2]
[405100516,1770813031720,-119.7697394,0.00016747,2]
[405100517,1770813031730,-1100.0,0.000168,6]
[405100518,1770813031740,-1423.80080126,0.00016818,2]
[405100519,1770813031759,-1068.07725392,0.00016818,2]
[405100520,1770813031771,-748.12194482,0.00016818,2]
[405100521,1770813031781,-1100.63562369,0.00016852,2]
[405100522,1770813031792,-2019.75,0.00016852,2]
[405100523,1770813031804,-662.27385623,0.00016852,2]
[405100524,1770813031814,-150.12614377,0.00016852,2]
[405100525,1770813031826,-953.31026791,0.00016852,2]
[405100527,1770813031839,-302.95472423,0.00016852,2]
[405100529,1770813031849,-7.35527577,0.000169,6]
[405100535,1770813037699,-202.97555083,0.00016852,2]
[405100536,1770813037710,-243.52282556,0.000169,6]
[405100537,1770813037722,-1249.12189867,0.000169,6]
[405100538,1770813037732,-300.0,0.00016943,2]
[405100539,1770813037742,-500.0,0.00016951,2]
[405100540,1770813037753,-210.15485152,0.00016951,2]
[405100541,1770813037763,-359.55281555,0.00016951,2]
[405100542,1770813037773,-180.59802983,0.00016951,2]
[405100543,1770813037783,-758.23153072,0.00016952,2]
[405100544,1770813037792,-500.0,0.00016952,2]
[405100545,1770813037802,-504.73417313,0.00016952,2]
[405100546,1770813037812,-30518.05677816,0.00016952,2]
[405100547,1770813037824,-578.6699997,0.00016952,2]
[405100548,1770813037845,-903.93718342,0.00016952,2]
[405100549,1770813037865,-308.5174995,0.00016952,2]
[405100562,1770813039691,-765.93076401,0.00016952,2]
[405100563,1770813039750,-1234.54389124,0.00016952,2]
[405100564,1770813039762,-801.54783843,0.00016952,2]
[405100565,1770813039774,-732.18335078,0.00016952,2]
[405100566,1770813039786,-585.16885174,0.00016952,2]
[405100567,1770813039798,-51494.11340094,0.00016952,2]
[405100568,1770813039916,-211640.99937231,0.00016952,2]
[405100569,1770813039973,-337.335,0.00016952,2]
[405100570,1770813040032,-900.0,0.00016952,2]
[405100571,1770813040044,-1583233.87431188,0.00016952,2]
[405100572,1770813040057,-524.6783232,0.00016952,2]
[405100583,1770813044429,-555.870015,0.00016952,2]
[405100584,1770813045700,-474.209881,0.00016952,2]
[405100585,1770813045755,-722.09343077,0.00016952,2]
[405100586,1770813045767,-332.26475,0.00016952,2]
[405100587,1770813045779,-1148.2800006,0.00016952,2]
[405100588,1770813045883,-311.99987646,0.00016952,2]
[405100758,1770813817100,500.0,0.00035616,120]
[405100796,1770814231739,-166.66,0.00014941,2]
[405100797,1770814231749,-166.66,0.00015256,2]
[405100798,1770814231759,-20.18,0.0001557,2]
[405100799,1770814231794,-146.48,0.0001557,2]
[405100800,1770814231804,-166.66,0.00015885,2]
[405100801,1770814231815,-500.0,0.00016128,2]
[405100802,1770814231825,-166.66,0.000162,2]
[405100803,1770814231835,-1340.57,0.00016263,2]
[405100804,1770814231846,-619.13,0.00016263,2]
[405100805,1770814231856,-1171.9926133,0.0001627,2]
[405100806,1770814231866,-391.763,0.00016319,2]
[405100807,1770814231875,-188.27841096,0.00016342,2]
[405100808,1770814231885,-151.0,0.00016349,2]
[405100809,1770814231895,-180.85318215,0.00016351,2]
[405100810,1770814231904,-223.63233452,0.00016351,2]
[405100811,1770814231914,-194.67099102,0.00016351,2]
[405100812,1770814231923,-647.10839606,0.00016351,2]
[405100813,1770814231933,-150.0,0.00016351,2]
[405100814,1770814231942,-150.0,0.00016351,2]
[405100815,1770814231951,-440526.9142353,0.00016352,2]
[405100817,1770814231970,-1403.84725605,0.00016352,2]
[405100838,1770814237781,-950.98,0.0001627,2]
[405100865,1770814240129,-1665.04881229,0.0001627,2]
[405100866,1770814240139,-1169964.96400865,0.00016352,2]
[405100867,1770814240152,-2073.63237384,0.0001637,2]
[405100868,1770814240162,-500.0,0.00016411,2]
[405100869,1770814240172,-158.5,0.0001642,2]
[405100870,1770814240184,-1000.0,0.00016438,2]
[405100871,1770814240193,-7631.40182179,0.00016452,2]
[405100872,1770814240203,-966.93619543,0.00016452,2]
[405100873,1770814240212,-2500.0,0.00016452,2]
[405100874,1770814240222,-500.0,0.00016466,2]
[405100875,1770814240231,-166.67,0.00016487,2]
[405100876,1770814240241,-200.0,0.000165,6]
[405100877,1770814240250,-166.66,0.00016514,2]
[405100878,1770814240259,-578.39927052,0.00016551,2]
[405100879,1770814240269,-126007.23667382,0.00016551,2]
[405100880,1770814240279,-33323.5159,0.00016552,2]
[405100881,1770814240290,-200.0,0.00016563,2]
[405100882,1770814240301,-1171.99261325,0.00016596,2]
[405100883,1770814240312,-400.0,0.000166,6]
[405100884,1770814240324,-1126.55359944,0.00016612,2]
[405100885,1770814240334,-7631.40182176,0.00016613,2]
[405100886,1770814240343,-966.93619538,0.00016613,2]
[405100887,1770814240355,-500.0,0.00016651,2]
[405100888,1770814240367,-500.0,0.00016651,2]
[405100889,1770814240376,-500.0,0.00016651,2]
[405100890,1770814240386,-500.0,0.00016651,2]
[405100891,1770814240395,-500.0,0.00016651,2]
[405100892,1770814240406,-500.0,0.00016651,2]
[405100893,1770814240416,-600.0,0.000167,6]
[405100894,1770814240427,-151.10721361,0.00016712,2]
[405100895,1770814240437,-150.99,0.00016712,2]
[405100896,1770814240446,-9999.99,0.00016712,2]
[405100897,1770814240456,-5347.89,0.00016712,2]
[405100898,1770814240474,-1000.0,0.00016712,2]
[405100899,1770814240485,-165.72322172,0.00016752,2]
[405100900,1770814240495,-7631.40182176,0.00016774,2]
[405100901,1770814240504,-966.93619538,0.00016774,2]
[405100902,1770814240514,-800.0,0.000168,6]
[405100903,1770814240523,-1000.0,0.00016852,2]
[405100904,1770814240533,-950.98,0.00016852,2]
[405100905,1770814240543,-1000.0,0.000169,6]
[405100906,1770814240553,-10000.0,0.000169,2]
[405100907,1770814240563,-1171.99261325,0.00016922,2]
[405100908,1770814240572,-7631.40182176,0.00016935,2]
[405100909,1770814240581,-966.93619538,0.00016935,2]
[405100910,1770814240591,-203.25,0.00016951,2]
[405100911,1770814240600,-171595.42594285,0.00016951,2]
[405100912,1770814240616,-401.41874088,0.00016951,2]
[405100924,1770814243647,-1679.40487361,0.00016951,2]
[405100943,1770814245847,-908.92000014,0.00016252,2]
[405100944,1770814245899,-275.125,0.00016252,2]
[405100994,1770815138922,-283.0,0.00013268,2]
[405100995,1770815139032,-277.61423164,0.00013268,2]
[405101007,1770815277053,500.0,0.00035616,120]
[405101008,1770815304332,1000.0,0.00035616,120]
[405101009,1770815330680,1000.0,0.00035616,120]
[405101028,1770815431952,-1591.95576836,0.00013268,2]
[405101029,1770815431961,-2050.12555146,0.00013492,2]
[405101030,1770815431970,-338.18558243,0.00014594,2]
[405101031,1770815431979,-2297.96801469,0.00014626,2]
[405101032,1770815431989,-150.0,0.0001523,2]
[405101033,1770815431998,-458.992652,0.0001531,2]
[405101034,1770815432008,-168.28,0.00015387,2]
[405101035,1770815432018,-158.5,0.00015481,2]
[405101036,1770815432028,-300.0,0.000155,5]
[405101037,1770815432038,-1000.0,0.00015552,2]
[405101038,1770815432049,-600.0,0.000156,5]
[405101039,1770815432059,-250.0,0.00015616,2]
[405101040,1770815432072,-2236.63568125,0.0001566,2]
[405101041,1770815432082,-1245.47057722,0.0001566,2]
[405101042,1770815432091,-825.07353291,0.0001566,2]
[405101043,1770815432102,-1000.0,0.000157,5]
[405101044,1770815432112,-209.13309471,0.00015723,2]
[405101045,1770815432122,-155.20645213,0.0001573,2]
[405101046,1770815432132,-300.0,0.00015731,2]
[405101047,1770815432143,-1010.6773794,0.00015732,2]
[405101048,1770815432153,-180.24160051,0.00015732,2]
[405101049,1770815432163,-500.0,0.00015732,2]
[405101050,1770815432173,-301.99138935,0.00015732,2]
[405101051,1770815432183,-605.13731939,0.00015732,2]
[405101052,1770815432194,-358.32105063,0.00015732,2]
[405101053,1770815432204,-500.0,0.00015732,2]
[405101054,1770815432214,-500.0,0.00015732,2]
[405101055,1770815432223,-555.43973787,0.00015732,2]
[405101056,1770815432233,-500.0,0.00015732,2]
[405101057,1770815432242,-500.0,0.00015732,2]
[405101058,1770815432254,-500.0,0.00015732,2]
[405101059,1770815432267,-500.0,0.00015732,2]
[405101060,1770815432277,-500.0,0.00015732,2]
[405101061,1770815432287,-500.0,0.00015732,2]
[405101062,1770815432297,-762785.55839265,0.00015733,2]
[405101063,1770815432309,-229357.87606552,0.00015733,2]
[405101064,1770815432321,-183980.91213228,0.00015733,2]
[405101065,1770815432333,-166432.05823049,0.00015733,2]
[405101066,1770815432345,-1254.41808677,0.00015733,2]
[405101067,1770815432358,-323.48910006,0.00015733,2]
[405101068,1770815432370,-1400.0,0.00015733,2]
[405101069,1770815432382,-671.92,0.00015733,2]
[405101072,1770815438586,-5616.22983093,0.00015733,2]
[405101073,1770815438769,-2402.16,0.00015733,2]
[405101084,1770815440286,-6200.0,0.00015733,2]
[405101085,1770815440566,-965205.4051613,0.00015733,2]
[405101086,1770815440576,-2545.81047792,0.0001576,2]
[405101087,1770815440586,-1000.0,0.000158,2]
[405101088,1770815440595,-1300.0,0.000158,5]
[405101089,1770815440606,-2500.0,0.00015867,2]
[405101090,1770815440615,-950.98,0.00015867,2]
[405101091,1770815440624,-1700.0,0.000159,5]
[405101092,1770815440634,-2236.63568122,0.00015909,2]
[405101093,1770815440643,-151.0,0.0001595,2]
[405101094,1770815440653,-1126.55359944,0.00016052,2]
[405101095,1770815440662,-150.99,0.00016116,2]
[405101096,1770815440672,-9999.99,0.00016116,2]
[405101097,1770815440684,-578.39927052,0.00016151,2]
[405101099,1770815440694,-500.0,0.00016151,2]
[405101101,1770815440707,-500.0,0.00016151,2]
[405101103,1770815440717,-500.0,0.00016151,2]
[405101105,1770815440726,-500.0,0.00016151,2]
[405101107,1770815440735,-500.0,0.00016151,2]
[405101109,1770815440746,-500.0,0.00016151,2]
[405101111,1770815440755,-500.0,0.00016151,2]
[405101113,1770815440765,-500.0,0.00016151,2]
[405101115,1770815440776,-227.67632579,0.00016152,2]
[405101118,1770815440786,-313.41,0.00016152,2]
[405101120,1770815440795,-2236.63568122,0.00016158,2]
[405101122,1770815440805,-200.0,0.00016213,2]